fUSD/lending_fUSD_20240122
["ID","MTS","AMOUNT","RATE_DAILY","PERIOD"]
[312506052,1705935234430,-854.16,0.00056164,120]
[312506053,1705935234461,-542.23194909,0.00056164,120]
[312506054,1705935234494,-1360.93,0.00056164,120]
[312506055,1705935234526,-500.0,0.00056164,120]
[312506056,1705935234558,-612.83,0.00056164,120]
[312506057,1705935234589,-500.0,0.00056164,120]
[312506058,1705935234622,-763.7,0.00056164,120]
[312506059,1705935234654,-862.53,0.00056164,120]
[312506060,1705935234686,-709.99,0.00056164,120]
[312506061,1705935234718,-716.16,0.00056164,120]
[312506062,1705935234750,-743.65,0.00056164,120]
[312506063,1705935234782,-500.0,0.00056164,120]
[312506064,1705935234814,-500.0,0.00056164,120]
[312506065,1705935234845,-501.89,0.00056164,120]
[312506066,1705935234877,-765.86,0.00056164,120]
[312506067,1705935234909,-1960.91,0.00056164,120]
[312506068,1705935234942,-500.0,0.00056164,120]
[312506069,1705935234979,-864.85,0.00056164,120]
[312506070,1705935235016,-500.0,0.00056164,120]
[312506071,1705935235055,-500.0,0.00056164,120]
[312506072,1705935235092,-895.93,0.00056164,120]
[312506073,1705935235127,-375.02,0.00056164,120]
[312506074,1705935235161,-652.75,0.00056164,120]
[312506075,1705935235194,-500.0,0.00056164,120]
[312506076,1705935235228,-718.71,0.00056164,120]
[312506077,1705935235261,-1017.75,0.00056164,120]
[312506078,1705935235293,-500.0,0.00056164,120]
[312506079,1705935235324,-526.63664581,0.00056164,120]
[312506080,1705935235357,-500.0,0.00056164,120]
[312506081,1705935235389,-950.95,0.00056164,120]
[312506082,1705935235423,-1166.26,0.00056164,120]
[312506083,1705935235455,-1163.88,0.00056164,120]
[312506084,1705935235487,-706.58,0.00056164,120]
[312506085,1705935235520,-500.0,0.00056164,120]
[312506086,1705935235552,-500.0,0.00056164,120]
[312506087,1705935235583,-775.78,0.00056164,120]
[312506088,1705935235616,-500.0,0.00056164,120]
[312506089,1705935235651,-1841.93,0.00056164,120]
[312506090,1705935235683,-500.0,0.00056164,120]
[312506091,1705935235716,-500.0,0.00056164,120]
[312506092,1705935235749,-604.25,0.00056164,120]
[312506093,1705935235782,-500.0,0.00056164,120]
[312506094,1705935235815,-744.8,0.00056164,120]
[312506095,1705935235845,-500.0,0.00056164,120]
[312506096,1705935235877,-803.23,0.00056164,120]
[312506097,1705935235909,-500.0,0.00056164,120]
[312506098,1705935235940,-1391.49,0.00056164,120]
[312506099,1705935235972,-500.0,0.00056164,120]
[312506100,1705935236006,-743.79,0.00056164,120]
[312506101,1705935236040,-758.95,0.00056164,120]
[312506102,1705935236074,-805.81,0.00056164,120]
[312506103,1705935236106,-500.0,0.00056164,120]
[312506104,1705935236138,-575.63,0.00056164,120]
[312506105,1705935236175,-500.0,0.00056164,120]
[312506106,1705935236208,-869.66,0.00056164,120]
[312506107,1705935236243,-500.0,0.00056164,120]
[312506108,1705935236276,-500.0,0.00056164,120]
[312506109,1705935236310,-500.0,0.00056164,120]
[312506110,1705935236344,-907.16,0.00056164,120]
[312506111,1705935236377,-619.23,0.00056164,120]
[312506112,1705935236411,-789.34,0.00056164,120]
[312506113,1705935236451,-500.0,0.00056164,120]
[312506114,1705935236484,-1452.65,0.00056164,120]
[312506115,1705935236518,-696.15,0.00056164,120]
[312506116,1705935236550,-500.0,0.00056164,120]
[312506117,1705935236582,-593.79,0.00056164,120]
[312506118,1705935236615,-500.0,0.00056164,120]
[312506119,1705935236648,-542.86233071,0.00056164,120]
[312506120,1705935236680,-1334.13,0.00056164,120]
[312506121,1705935236712,-500.0,0.00056164,120]
[312506122,1705935236749,-836.62,0.00056164,120]
[312506123,1705935236781,-837.72,0.00056164,120]
[312506124,1705935236814,-623.18,0.00056164,120]
[312506125,1705935236848,-1323.21,0.00056164,120]
[312506126,1705935236883,-500.0,0.00056164,120]
[312506127,1705935236926,-557.03,0.00056164,120]
[312506128,1705935236969,-609.57,0.00056164,120]
[312506129,1705935237008,-951.02,0.00056164,120]
[312506130,1705935237046,-1742.89,0.00056164,120]
[312506131,1705935237082,-500.0,0.00056164,120]
[312506132,1705935237117,-500.0,0.00056164,120]
[312506133,1705935237152,-762.89,0.00056164,120]
[312506134,1705935237187,-650.96,0.00056164,120]
[312506135,1705935237224,-500.0,0.00056164,120]
[312506136,1705935237258,-659.39,0.00056164,120]
[312506137,1705935237292,-500.0,0.00056164,120]
[312506138,1705935237325,-500.0,0.00056164,120]
[312506139,1705935237359,-500.0,0.00056164,120]
[312506140,1705935237392,-651.75,0.00056164,120]
[312506141,1705935237430,-500.0,0.00056164,120]
[312506142,1705935237464,-500.0,0.00056164,120]
[312506143,1705935237706,-852.44,0.00056164,120]
[312506144,1705935237741,-500.0,0.00056164,120]
[312506145,1705935237773,-500.0,0.00056164,120]
[312506146,1705935237805,-493.75337675,0.00056164,120]
[312506147,1705935237836,-500.0,0.00056164,120]
[312506148,1705935237867,-500.0,0.00056164,120]
[312506149,1705935237904,-500.0,0.00056164,120]
[312506150,1705935237936,-1607.72,0.00056164,120]
[312506151,1705935237968,-1788.51,0.00056164,120]
[312506152,1705935238001,-500.0,0.00056164,120]
[312506153,1705935238035,-669.85,0.00056164,120]
[312506154,1705935238068,-744.04,0.00056164,120]
[312506155,1705935238116,-500.0,0.00056164,120]
[312506156,1705935238150,-645.14,0.00056164,120]
[312506157,1705935238183,-608.8,0.00056164,120]
[312506158,1705935238217,-500.0,0.00056164,120]
[312506159,1705935238250,-702.16,0.00056164,120]
[312506160,1705935238286,-300.0,0.00056164,120]
[312506161,1705935238321,-559.87,0.00056164,120]
[312506162,1705935238360,-500.0,0.00056164,120]
[312506163,1705935238396,-529.36623666,0.00056164,120]
[312506164,1705935238435,-1326.85,0.00056164,120]
[312506165,1705935238470,-500.0,0.00056164,120]
[312506166,1705935238505,-1404.36,0.00056164,120]
[312506167,1705935238540,-1490.02,0.00056164,120]
[312506168,1705935238575,-500.0,0.00056164,120]
[312506169,1705935238609,-500.0,0.00056164,120]
[312506170,1705935238642,-500.0,0.00056164,120]
[312506171,1705935238677,-1273.58,0.00056164,120]
[312506172,1705935238712,-500.0,0.00056164,120]
[312506173,1705935238747,-500.0,0.00056164,120]
[312506174,1705935238780,-500.0,0.00056164,120]
[312506175,1705935238813,-1577.88,0.00056164,120]
[312506176,1705935238846,-850.44,0.00056164,120]
[312506177,1705935238878,-500.0,0.00056164,120]
[312506178,1705935238911,-665.34,0.00056164,120]
[312506179,1705935238945,-500.0,0.00056164,120]
[312506180,1705935238981,-836.88,0.00056164,120]
[312506181,1705935239016,-500.0,0.00056164,120]
[312506182,1705935239049,-1144.66,0.00056164,120]
[312506183,1705935239080,-500.0,0.00056164,120]
[312506184,1705935239112,-500.0,0.00056164,120]
[312506185,1705935239147,-1273.46,0.00056164,120]
[312506186,1705935239181,-649.5,0.00056164,120]
[312506187,1705935239215,-500.0,0.00056164,120]
[312506188,1705935239248,-500.0,0.00056164,120]
[312506189,1705935239286,-1047.97,0.00056164,120]
[312506190,1705935239320,-500.0,0.00056164,120]
[312506191,1705935239357,-500.0,0.00056164,120]
[312506192,1705935239390,-500.0,0.00056164,120]
[312506193,1705935239427,-500.0,0.00056164,120]
[312506194,1705935239461,-600.2,0.00056164,120]
[312506195,1705935239494,-602.18010921,0.00056164,120]
[312506196,1705935239527,-500.0,0.00056164,120]
[312506197,1705935239560,-754.61,0.00056164,120]
[312506198,1705935239592,-852.62,0.00056164,120]
[312506199,1705935239624,-836.94,0.00056164,120]
[312506200,1705935239656,-500.0,0.00056164,120]
[312506201,1705935239689,-1099.97,0.00056164,120]
[312506202,1705935239721,-500.0,0.00056164,120]
[312506203,1705935239753,-500.0,0.00056164,120]
[312506204,1705935239786,-500.0,0.00056164,120]
[312506205,1705935239819,-500.0,0.00056164,120]
[312506206,1705935239851,-857.36,0.00056164,120]
[312506207,1705935239885,-500.0,0.00056164,120]
[312506208,1705935239920,-597.17,0.00056164,120]
[312506209,1705935239955,-1527.68,0.00056164,120]
[312506210,1705935239989,-806.43,0.00056164,120]
[312506211,1705935240023,-500.0,0.00056164,120]
[312506212,1705935240058,-2110.23,0.00056164,120]
[312506213,1705935240092,-540.59178977,0.00056164,120]
[312506214,1705935240125,-500.0,0.00056164,120]
[312506215,1705935240161,-1844.2,0.00056164,120]
[312506216,1705935240197,-500.0,0.00056164,120]
[312506217,1705935240232,-500.0,0.00056164,120]
[312506218,1705935240267,-552.99,0.00056164,120]
[312506219,1705935240301,-1034.47,0.00056164,120]
[312506220,1705935240336,-500.0,0.00056164,120]
[312506221,1705935240370,-1707.75,0.00056164,120]
[312506222,1705935240405,-666.0,0.00056164,120]
[312506223,1705935240441,-500.0,0.00056164,120]
[312506224,1705935240476,-1129.13,0.00056164,120]
[312506225,1705935240509,-500.0,0.00056164,120]
[312506226,1705935240542,-599.85,0.00056164,120]
[312506227,1705935240575,-500.0,0.00056164,120]
[312506228,1705935240610,-932.99,0.00056164,120]
[312506229,1705935240648,-2637.9,0.00056164,120]
[312506230,1705935240684,-1394.47,0.00056164,120]
[312506231,1705935240719,-500.0,0.00056164,120]
[312506232,1705935240752,-756.66,0.00056164,120]
[312506233,1705935240786,-500.0,0.00056164,120]
[312506234,1705935240822,-591.22,0.00056164,120]
[312506235,1705935240857,-1651.7,0.00056164,120]
[312506236,1705935240892,-500.0,0.00056164,120]
[312506237,1705935240929,-970.35,0.00056164,120]
[312506238,1705935240967,-500.0,0.00056164,120]
[312506239,1705935241004,-506.16,0.00056164,120]
[312506240,1705935241044,-920.91,0.00056164,120]
[312506241,1705935241084,-752.54,0.00056164,120]
[312506242,1705935241122,-653.54,0.00056164,120]
[312506243,1705935241160,-500.0,0.00056164,120]
[312506244,1705935241198,-1751.16,0.00056164,120]
[312506245,1705935241237,-652.01,0.00056164,120]
[312506246,1705935241462,-650.78,0.00056164,120]
[312506247,1705935241503,-631.92,0.00056164,120]
[312506248,1705935241540,-752.76,0.00056164,120]
[312506249,1705935241574,-500.0,0.00056164,120]
[312506250,1705935241607,-2270.34,0.00056164,120]
[312506251,1705935241641,-1786.0,0.00056164,120]
[312506252,1705935241677,-500.0,0.00056164,120]
[312506253,1705935241711,-1361.82,0.00056164,120]
[312506254,1705935241744,-3797.03,0.00056164,120]
[312506255,1705935241779,-1781.02,0.00056164,120]
[312506256,1705935241812,-1364.57,0.00056164,120]
[312506257,1705935241845,-172.88,0.00056164,120]
[312506258,1705935241879,-1756.9,0.00056164,120]
[312506259,1705935241914,-790.71,0.00056164,120]
[312506260,1705935241950,-598.0,0.00056164,120]
[312506261,1705935241985,-480.72710759,0.00056164,120]
[312506262,1705935242022,-609.8,0.00056164,120]
[312506263,1705935242057,-543.53,0.00056164,120]
[312506264,1705935242092,-761.51,0.00056164,120]
[312506265,1705935242129,-1909.96,0.00056164,120]
[312506266,1705935242165,-1240.73,0.00056164,120]
[312506267,1705935242202,-12125.73,0.00056164,120]
[312506268,1705935242238,-500.0,0.00056164,120]
[312506269,1705935242275,-500.0,0.00056164,120]
[312506270,1705935242313,-2651.29,0.00056164,120]
[312506271,1705935242353,-1183.91,0.00056164,120]
[312506272,1705935242391,-1284.7,0.00056164,120]
[312506273,1705935242431,-500.0,0.00056164,120]
[312506274,1705935242467,-500.0,0.00056164,120]
[312506275,1705935242509,-5137.25,0.00056164,120]
[312506276,1705935242555,-1103.44,0.00056164,120]
[312506277,1705935242601,-500.0,0.00056164,120]
[312506278,1705935242655,-500.0,0.00056164,120]
[312506279,1705935242699,-500.0,0.00056164,120]
[312506280,1705935242746,-500.0,0.00056164,120]
[312506281,1705935242789,-2169.34,0.00056164,120]
[312506282,1705935242833,-12713.95,0.00056164,120]
[312506283,1705935242875,-1882.98,0.00056164,120]
[312506284,1705935242916,-500.0,0.00056164,120]
[312506285,1705935242960,-967.39,0.00056164,120]
[312506286,1705935243004,-1657.15,0.00056164,120]
[312506287,1705935243049,-500.0,0.00056164,120]
[312506288,1705935243093,-943.25,0.00056164,120]
[312506289,1705935243136,-1729.69,0.00056164,120]
[312506290,1705935243184,-500.0,0.00056164,120]
[312506291,1705935243224,-569.65,0.00056164,120]
[312506292,1705935243267,-606.66,0.00056164,120]
[312506293,1705935243309,-2125.62,0.00056164,120]
[312506294,1705935243357,-1419.55,0.00056164,120]
[312506295,1705935243408,-1565.88,0.00056164,120]
[312506296,1705935243456,-689.11,0.00056164,120]
[312506297,1705935243501,-1689.91,0.00056164,120]
[312506298,1705935243545,-539.53826279,0.00056164,120]
[312506299,1705935243585,-565.00467507,0.00056164,120]
[312506300,1705935243621,-1921.07,0.00056164,120]
[312506301,1705935243657,-500.0,0.00056164,120]
[312506302,1705935243693,-700.71,0.00056164,120]
[312506303,1705935243732,-2015.32,0.00056164,120]
[312506304,1705935243766,-230.34302881,0.00056164,120]
[312506305,1705935243800,-500.0,0.00056164,120]
[312506306,1705935243835,-500.0,0.00056164,120]
[312506307,1705935243872,-1539.91,0.00056164,120]
[312506308,1705935243912,-1927.03,0.00056164,120]
[312506309,1705935243950,-1314.85,0.00056164,120]
[312506310,1705935243987,-1686.46,0.00056164,120]
[312506311,1705935244026,-500.0,0.00056164,120]
[312506312,1705935244066,-677.55,0.00056164,120]
[312506313,1705935244103,-1985.74,0.00056164,120]
[312506314,1705935244138,-500.0,0.00056164,120]
[312506315,1705935244179,-550.06,0.00056164,120]
[312506316,1705935244217,-1259.3,0.00056164,120]
[312506317,1705935244252,-712.03,0.00056164,120]
[312506318,1705935244287,-736.61,0.00056164,120]
[312506319,1705935244323,-4762.26,0.00056164,120]
[312506320,1705935244358,-559.5645854,0.00056164,120]
[312506321,1705935244394,-2461.8,0.00056164,120]
[312506322,1705935244432,-1880.63,0.00056164,120]
[312506323,1705935244466,-1557.26,0.00056164,120]
[312506324,1705935244500,-793.99,0.00056164,120]
[312506325,1705935244536,-519.50533441,0.00056164,120]
[312506326,1705935244571,-500.0,0.00056164,120]
[312506327,1705935244606,-1379.69,0.00056164,120]
[312506328,1705935244639,-2604.87,0.00056164,120]
[312506329,1705935244674,-500.0,0.00056164,120]
[312506330,1705935244708,-932.81,0.00056164,120]
[312506331,1705935244743,-500.0,0.00056164,120]
[312506332,1705935244777,-500.0,0.00056164,120]
[312506333,1705935244814,-3105.23,0.00056164,120]
[312506334,1705935244852,-500.0,0.00056164,120]
[312506335,1705935244887,-500.0,0.00056164,120]
[312506336,1705935244928,-1967.28,0.00056164,120]
[312506337,1705935244968,-504.66,0.00056164,120]
[312506338,1705935245007,-2108.57,0.00056164,120]
[312506339,1705935245051,-5534.47,0.00056164,120]
[312506340,1705935245091,-2822.45,0.00056164,120]
[312506341,1705935245132,-1147.57,0.00056164,120]
[312506342,1705935245173,-1151.76,0.00056164,120]
[312506343,1705935245213,-500.0,0.00056164,120]
[312506344,1705935245255,-504.79,0.00056164,120]
[312506345,1705935245294,-527.04797348,0.00056164,120]
[312506346,1705935245336,-828.94,0.00056164,120]
[312506347,1705935245377,-1921.76,0.00056164,120]
[312506348,1705935245418,-500.0,0.00056164,120]
[312506349,1705935245458,-500.0,0.00056164,120]
[312506350,1705935245673,-517.22,0.00056164,120]
[312506351,1705935245716,-836.23,0.00056164,120]
[312506352,1705935245757,-859.23,0.00056164,120]
[312506353,1705935245798,-2987.07,0.00056164,120]
[312506354,1705935245837,-1485.29,0.00056164,120]
[312506355,1705935245875,-500.0,0.00056164,120]
[312506356,1705935245912,-1113.39,0.00056164,120]
[312506357,1705935245951,-699.12,0.00056164,120]
[312506358,1705935245991,-500.0,0.00056164,120]
[312506359,1705935246030,-1325.84,0.00056164,120]
[312506360,1705935246071,-610.32,0.00056164,120]
[312506361,1705935246110,-500.0,0.00056164,120]
[312506362,1705935246153,-500.0,0.00056164,120]
[312506363,1705935246194,-977.5,0.00056164,120]
[312506364,1705935246233,-1197.96,0.00056164,120]
[312506365,1705935246270,-680.84,0.00056164,120]
[312506366,1705935246308,-1447.9,0.00056164,120]
[312506367,1705935246345,-6620.65,0.00056164,120]
[312506368,1705935246383,-768.63,0.00056164,120]
[312506369,1705935246426,-4857.5,0.00056164,120]
[312506370,1705935246471,-2086.5,0.00056164,120]
[312506371,1705935246514,-500.0,0.00056164,120]
[312506372,1705935246557,-500.0,0.00056164,120]
[312506373,1705935246596,-1199.49,0.00056164,120]
[312506374,1705935246634,-2054.67,0.00056164,120]
[312506375,1705935246676,-500.0,0.00056164,120]
[312506376,1705935246711,-500.0,0.00056164,120]
[312506377,1705935246746,-500.0,0.00056164,120]
[312506378,1705935246781,-519.19,0.00056164,120]
[312506379,1705935246813,-886.41,0.00056164,120]
[312506380,1705935246844,-500.0,0.00056164,120]
[312506381,1705935246876,-500.0,0.00056164,120]
[312506382,1705935246908,-10248.86,0.00056164,120]
[312506383,1705935246943,-500.0,0.00056164,120]
[312506384,1705935246980,-500.0,0.00056164,120]
[312506385,1705935247016,-1103.75,0.00056164,120]
[312506386,1705935247052,-751.87,0.00056164,120]
[312506387,1705935247087,-3237.18,0.00056164,120]
[312506388,1705935247122,-2009.92,0.00056164,120]
[312506389,1705935247159,-789.59,0.00056164,120]
[312506390,1705935247199,-685.82,0.00056164,120]
[312506391,1705935247238,-500.0,0.00056164,120]
[312506392,1705935247277,-964.24,0.00056164,120]
[312506393,1705935247317,-4264.33,0.00056164,120]
[312506394,1705935247357,-1535.34,0.00056164,120]
[312506395,1705935247398,-809.7,0.00056164,120]
[312506396,1705935247439,-1154.09,0.00056164,120]
[312506397,1705935247478,-1697.89,0.00056164,120]
[312506398,1705935247515,-1596.19,0.00056164,120]
[312506399,1705935247552,-1154.51,0.00056164,120]
[312506400,1705935247588,-1595.7,0.00056164,120]
[312506401,1705935247627,-500.0,0.00056164,120]
[312506402,1705935247662,-500.0,0.00056164,120]
[312506403,1705935247698,-2914.21,0.00056164,120]
[312506404,1705935247735,-1552.88,0.00056164,120]
[312506405,1705935247774,-608.04,0.00056164,120]
[312506406,1705935247810,-700.43,0.00056164,120]
[312506407,1705935247848,-980.8,0.00056164,120]
[312506408,1705935247885,-696.01,0.00056164,120]
[312506409,1705935247927,-1757.28,0.00056164,120]
[312506411,1705935247967,-665.51,0.00056164,120]
[312506412,1705935248007,-1171.38,0.00056164,120]
[312506413,1705935248046,-1708.66,0.00056164,120]
[312506414,1705935248084,-500.0,0.00056164,120]
[312506415,1705935248123,-559.65,0.00056164,120]
[312506416,1705935248163,-1273.88,0.00056164,120]
[312506417,1705935248200,-500.0,0.00056164,120]
[312506418,1705935248242,-536.79,0.00056164,120]
[312506419,1705935248283,-520.77,0.00056164,120]
[312506420,1705935248327,-1047.69,0.00056164,120]
[312506421,1705935248371,-714.84,0.00056164,120]
[312506422,1705935248415,-1774.41,0.00056164,120]
[312506423,1705935248456,-1003.68,0.00056164,120]
[312506424,1705935248495,-2030.56,0.00056164,120]
[312506425,1705935248534,-1882.22,0.00056164,120]
[312506426,1705935248570,-500.0,0.00056164,120]
[312506427,1705935248608,-1118.09,0.00056164,120]
[312506428,1705935248646,-1661.46,0.00056164,120]
[312506429,1705935248684,-2145.54,0.00056164,120]
[312506430,1705935248724,-500.0,0.00056164,120]
[312506431,1705935248763,-150.40437152,0.00056176,68]
[312506432,1705935248800,-500.0,0.00056282,120]
[312506433,1705935248837,-200.0,0.00056282,120]
[312506434,1705935248877,-150.0,0.0005634,60]
[312506435,1705935248914,-150.40437152,0.00056407,68]
[312506436,1705935248952,-500.0,0.00056438,120]
[312506437,1705935248991,-500.0,0.00056438,120]
[312506438,1705935249029,-500.0,0.00056438,120]
[312506439,1705935249067,-500.0,0.00056438,120]
[312506440,1705935249103,-500.0,0.00056438,120]
[312506441,1705935249141,-500.0,0.00056438,120]
[312506442,1705935249181,-500.0,0.00056438,120]
[312506443,1705935249218,-500.0,0.00056438,120]
[312506444,1705935249256,-559.06,0.00056438,120]
[312506445,1705935249294,-500.0,0.00056438,120]
[312506446,1705935249333,-500.0,0.00056438,120]
[312506447,1705935249372,-500.0,0.00056438,120]
[312506448,1705935249410,-500.0,0.00056438,120]
[312506449,1705935249446,-500.0,0.00056438,120]
[312506450,1705935249480,-500.0,0.00056438,120]
[312506451,1705935249513,-500.0,0.00056438,120]
[312506452,1705935249553,-500.0,0.00056438,120]
[312506453,1705935249586,-500.0,0.00056438,120]
[312506454,1705935249619,-500.0,0.00056438,120]
[312506455,1705935249829,-500.0,0.00056438,120]
[312506456,1705935249867,-500.0,0.00056438,120]
[312506457,1705935249907,-500.0,0.00056438,120]
[312506458,1705935249945,-626.59,0.00056438,120]
[312506459,1705935249981,-500.0,0.00056438,120]
[312506460,1705935250019,-500.0,0.00056438,120]
[312506461,1705935250056,-500.0,0.00056438,120]
[312506462,1705935250091,-500.0,0.00056438,120]
[312506463,1705935250128,-500.0,0.00056438,120]
[312506464,1705935250166,-500.0,0.00056438,120]
[312506465,1705935250204,-500.0,0.00056438,120]
[312506466,1705935250248,-528.4939505,0.00056438,120]
[312506467,1705935250291,-711.06,0.00056438,120]
[312506468,1705935250333,-714.27,0.00056438,120]
[312506469,1705935250378,-918.11,0.00056438,120]
[312506470,1705935250426,-500.0,0.00056438,120]
[312506471,1705935250468,-687.84,0.00056438,120]
[312506472,1705935250507,-500.0,0.00056438,120]
[312506473,1705935250549,-500.0,0.00056438,120]
[312506474,1705935250590,-587.61,0.00056438,120]
[312506475,1705935250635,-500.0,0.00056438,120]
[312506476,1705935250679,-500.0,0.00056438,120]
[312506477,1705935250724,-882.35,0.00056438,120]
[312506478,1705935250771,-831.94,0.00056438,120]
[312506479,1705935250822,-1066.83,0.00056438,120]
[312506480,1705935250865,-506.4,0.00056438,120]
[312506481,1705935250910,-500.0,0.00056438,120]
[312506482,1705935250952,-500.0,0.00056438,120]
[312506483,1705935250993,-692.09,0.00056438,120]
[312506484,1705935251035,-500.0,0.00056438,120]
[312506485,1705935251079,-500.0,0.00056438,120]
[312506486,1705935251125,-548.63,0.00056438,120]
[312506487,1705935251170,-523.7388588,0.00056438,120]
[312506488,1705935251218,-726.93,0.00056438,120]
[312506489,1705935251262,-500.0,0.00056438,120]
[312506490,1705935251308,-801.5,0.00056438,120]
[312506491,1705935251348,-533.44,0.00056438,120]
[312506492,1705935251393,-500.0,0.00056438,120]
[312506493,1705935251442,-500.0,0.00056438,120]
[312506494,1705935251491,-500.0,0.00056438,120]
[312506495,1705935251531,-500.0,0.00056438,120]
[312506496,1705935251570,-500.0,0.00056438,120]
[312506497,1705935251610,-500.0,0.00056438,120]
[312506498,1705935251647,-517.9,0.00056438,120]
[312506499,1705935251683,-500.0,0.00056438,120]
[312506500,1705935251717,-500.0,0.00056438,120]
[312506501,1705935251750,-500.0,0.00056438,120]
[312506502,1705935251784,-539.03,0.00056438,120]
[312506503,1705935251817,-500.0,0.00056438,120]
[312506504,1705935251852,-500.0,0.00056438,120]
[312506505,1705935251888,-500.0,0.00056438,120]
[312506506,1705935251923,-541.94,0.00056438,120]
[312506507,1705935251960,-500.0,0.00056438,120]
[312506508,1705935251996,-628.32,0.00056438,120]
[312506509,1705935252034,-500.0,0.00056438,120]
[312506510,1705935252072,-500.0,0.00056438,120]
[312506511,1705935252109,-1064.71,0.00056438,120]
[312506512,1705935252151,-500.0,0.00056438,120]
[312506513,1705935252192,-500.0,0.00056438,120]
[312506514,1705935252234,-500.0,0.00056438,120]
[312506515,1705935252271,-500.0,0.00056438,120]
[312506516,1705935252307,-500.0,0.00056438,120]
[312506517,1705935252344,-500.0,0.00056438,120]
[312506518,1705935252380,-500.0,0.00056438,120]
[312506519,1705935252415,-500.0,0.00056438,120]
[312506520,1705935252450,-688.57,0.00056438,120]
[312506521,1705935252485,-515.35,0.00056438,120]
[312506522,1705935252519,-500.0,0.00056438,120]
[312506523,1705935252552,-500.0,0.00056438,120]
[312506524,1705935252585,-532.26,0.00056438,120]
[312506525,1705935252618,-429.58,0.00056438,120]
[312506526,1705935252650,-500.0,0.00056438,120]
[312506527,1705935252686,-443.89290393,0.00056438,120]
[312506528,1705935252722,-511.93,0.00056438,120]
[312506529,1705935252760,-852.71,0.00056438,120]
[312506530,1705935252798,-500.0,0.00056438,120]
[312506531,1705935252834,-500.0,0.00056438,120]
[312506532,1705935252869,-500.0,0.00056438,120]
[312506533,1705935252908,-500.0,0.00056438,120]
[312506534,1705935252946,-500.0,0.00056438,120]
[312506535,1705935252983,-749.91,0.00056438,120]
[312506536,1705935253017,-500.0,0.00056438,120]
[312506537,1705935253051,-500.0,0.00056438,120]
[312506538,1705935253085,-500.0,0.00056438,120]
[312506539,1705935253119,-500.0,0.00056438,120]
[312506540,1705935253153,-706.74,0.00056438,120]
[312506541,1705935253191,-500.0,0.00056438,120]
[312506542,1705935253227,-500.0,0.00056438,120]
[312506543,1705935253261,-681.22,0.00056438,120]
[312506544,1705935253294,-500.0,0.00056438,120]
[312506545,1705935253329,-500.0,0.00056438,120]
[312506546,1705935253363,-520.16,0.00056438,120]
[312506547,1705935253400,-978.9,0.00056438,120]
[312506548,1705935253441,-1380.88,0.00056438,120]
[312506549,1705935253478,-570.7,0.00056438,120]
[312506550,1705935253513,-531.57818497,0.00056438,120]
[312506551,1705935253546,-500.0,0.00056438,120]
[312506552,1705935253581,-1255.4,0.00056438,120]